[Event "Titled Tuesday Blitz May 4 2021"]
[White "Meneses Gonzalez, Kevin Moises"]
[Black "Priyanka, K"]
[WhiteFideId "2284502"]
[BlackFideId "5082986"]
[WhiteElo "2301"]
[BlackElo "1893"]
[Result "1-0"]
[Round "07"]
[TimeControl "180+1"]
[Date "2021.05.04"]
[WhiteClock "0:01:43"]
[BlackClock "0:00:02"]

1. e4 {[%clk 0:03:00]}  c5 {[%clk 0:02:59]} 2. Nf3 {[%clk 0:03:00]}  d6 {[%clk 0:02:59]} 3. d4 {[%clk 0:03:01]}  cxd4 {[%clk 0:03:00]} 4. Nxd4 {[%clk 0:03:01]}  Nf6 {[%clk 0:03:01]} 5. Nc3 {[%clk 0:03:02]}  a6 {[%clk 0:03:01]} 6. Bg5 {[%clk 0:02:58]}  e6 {[%clk 0:03:00]} 7. f4 {[%clk 0:02:57]}  Qc7 {[%clk 0:03:00]} 8. Qf3 {[%clk 0:02:57]}  b5 {[%clk 0:03:00]} 9. Bxf6 {[%clk 0:02:53]}  gxf6 {[%clk 0:02:59]} 10. O-O-O {[%clk 0:02:50]}  b4 {[%clk 0:02:56]} 11. Nd5 {[%clk 0:02:49]}  exd5 {[%clk 0:02:44]} 12. exd5 {[%clk 0:02:50]}  Bb7 {[%clk 0:02:28]} 13. Bd3 {[%clk 0:02:45]}  Nd7 {[%clk 0:02:23]} 14. Rhe1+ {[%clk 0:02:45]}  Kd8 {[%clk 0:02:23]} 15. Bf5 {[%clk 0:02:30]}  Rc8 {[%clk 0:01:49]} 16. Re2 {[%clk 0:02:22]}  Bh6 {[%clk 0:01:27]} 17. Kb1 {[%clk 0:02:19]}  Rb8 {[%clk 0:01:11]} 18. Qh5 {[%clk 0:02:14]}  Bxd5 {[%clk 0:00:36]} 19. Bxd7 {[%clk 0:02:07]}  Qxd7 {[%clk 0:00:20]} 20. Qxd5 {[%clk 0:02:05]}  Bxf4 {[%clk 0:00:17]} 21. Nc6+ {[%clk 0:02:04]}  Kc7 {[%clk 0:00:16]} 22. Re7 {[%clk 0:02:02]}  Rb5 {[%clk 0:00:09]} 23. Rxd7+ {[%clk 0:02:01]}  Kxd7 {[%clk 0:00:09]} 24. Qf3 {[%clk 0:01:53]}  Be5 {[%clk 0:00:07]} 25. Nxe5+ {[%clk 0:01:52]}  fxe5 {[%clk 0:00:05]} 26. Qxf7+ {[%clk 0:01:52]}  Kc6 {[%clk 0:00:05]} 27. Rxd6+ {[%clk 0:01:45]}  Kxd6 {[%clk 0:00:04]} 28. Qf6+ {[%clk 0:01:46]}  Kd5 {[%clk 0:00:04]} 29. Qxh8 {[%clk 0:01:45]}  Rc5 {[%clk 0:00:03]} 30. Qxh7 {[%clk 0:01:44]}  Rc6 {[%clk 0:00:02]} 31. Qf7+ {[%clk 0:01:42]}  Re6 {[%clk 0:00:02]} 32. h4 {[%clk 0:01:42]}  e4 {[%clk 0:00:02]} 33. Kc1 {[%clk 0:01:36]}  e3 {[%clk 0:00:02]} 34. Kd1 {[%clk 0:01:36]}  e2+ {[%clk 0:00:03]} 35. Ke1 {[%clk 0:01:37]}  Kd6 {[%clk 0:00:03]} 36. Qxe6+ {[%clk 0:01:36]}  Kxe6 {[%clk 0:00:03]} 37. Kxe2 {[%clk 0:01:37]}  Kf5 {[%clk 0:00:04]} 38. Kf3 {[%clk 0:01:38]}  Kg6 {[%clk 0:00:04]} 39. g4 {[%clk 0:01:39]}  Kh6 {[%clk 0:00:05]} 40. Kf4 {[%clk 0:01:39]}  Kg6 {[%clk 0:00:06]} 41. c4 {[%clk 0:01:39]}  bxc3 {[%clk 0:00:04]} 42. bxc3 {[%clk 0:01:40]}  Kf6 {[%clk 0:00:04]} 43. c4 {[%clk 0:01:40]}  Ke6 {[%clk 0:00:04]} 44. h5 {[%clk 0:01:41]}  Kd6 {[%clk 0:00:04]} 45. h6 {[%clk 0:01:42]}  Kc5 {[%clk 0:00:04]} 46. h7 {[%clk 0:01:43]}  Kxc4 {[%clk 0:00:05]} 47. h8=Q {[%clk 0:01:43]}  a5 {[%clk 0:00:02]} 48. Qd8 {[%clk 0:01:43]} 1-0


[Site "https://www.chess.com"]

[Event "Titled Tuesday Blitz May 4 2021"]
[White "Minaya, Juan"]
[Black "Gedgafov, Chamal"]
[WhiteFideId "4400283"]
[BlackFideId "34130621"]
[WhiteElo "1846"]
[BlackElo "2005"]
[Result "0-1"]
[Round "07"]
[TimeControl "180+1"]
[Date "2021.05.04"]
[WhiteClock "0:00:06"]
[BlackClock "0:01:01"]

1. Nf3 {[%clk 0:03:00]}  d5 {[%clk 0:02:57]} 2. c4 {[%clk 0:02:58]}  c6 {[%clk 0:02:58]} 3. e3 {[%clk 0:02:53]}  dxc4 {[%clk 0:02:56]} 4. Bxc4 {[%clk 0:02:51]}  Bg4 {[%clk 0:02:57]} 5. Bxf7+ {[%clk 0:02:47]}  Kxf7 {[%clk 0:02:57]} 6. Ne5+ {[%clk 0:02:46]}  Ke6 {[%clk 0:02:54]} 7. Qxg4+ {[%clk 0:02:43]}  Kxe5 {[%clk 0:02:54]} 8. b3 {[%clk 0:02:36]}  Kd6 {[%clk 0:02:53]} 9. Bb2 {[%clk 0:02:31]}  Nf6 {[%clk 0:02:47]} 10. Qf4+ {[%clk 0:02:30]}  Kd7 {[%clk 0:02:45]} 11. Nc3 {[%clk 0:02:24]}  e6 {[%clk 0:02:43]} 12. Na4 {[%clk 0:02:09]}  Bd6 {[%clk 0:02:37]} 13. Qg5 {[%clk 0:02:01]}  Qe7 {[%clk 0:02:33]} 14. Rc1 {[%clk 0:01:45]}  Na6 {[%clk 0:02:32]} 15. f4 {[%clk 0:01:34]}  Rad8 {[%clk 0:02:27]} 16. Bd4 {[%clk 0:01:23]}  b6 {[%clk 0:02:17]} 17. e4 {[%clk 0:01:08]}  Nxe4 {[%clk 0:02:09]} 18. Qh5 {[%clk 0:00:52]}  Nxd2 {[%clk 0:01:52]} 19. Kxd2 {[%clk 0:00:47]}  Bxf4+ {[%clk 0:01:51]} 20. Ke2 {[%clk 0:00:37]}  Bxc1 {[%clk 0:01:37]} 21. Rxc1 {[%clk 0:00:35]}  e5 {[%clk 0:01:21]} 22. Be3 {[%clk 0:00:29]}  Kc7 {[%clk 0:01:18]} 23. Qf3 {[%clk 0:00:11]}  Qd6 {[%clk 0:01:15]} 24. Qe4 {[%clk 0:00:06]}  Qd5 {[%clk 0:01:01]} 0-1


[Site "https://www.chess.com"]

[Event "Titled Tuesday Blitz May 4 2021"]
[White "Mohammad Fahad, Rahman"]
[Black "Keymer, Vincent"]
[WhiteFideId "10207791"]
[BlackFideId "12940690"]
[WhiteElo "2308"]
[BlackElo "2474"]
[Result "0-1"]
[Round "07"]
[TimeControl "180+1"]
[Date "2021.05.04"]
[WhiteClock "0:00:40"]
[BlackClock "0:01:41"]

1. e4 {[%clk 0:03:00]}  c6 {[%clk 0:02:56]} 2. d4 {[%clk 0:03:00]}  d5 {[%clk 0:02:57]} 3. e5 {[%clk 0:03:01]}  Bf5 {[%clk 0:02:56]} 4. h4 {[%clk 0:03:01]}  h6 {[%clk 0:02:56]} 5. g4 {[%clk 0:03:00]}  Be4 {[%clk 0:02:57]} 6. f3 {[%clk 0:03:00]}  Bh7 {[%clk 0:02:57]} 7. e6 {[%clk 0:03:01]}  Nf6 {[%clk 0:02:58]} 8. exf7+ {[%clk 0:03:00]}  Kxf7 {[%clk 0:02:59]} 9. f4 {[%clk 0:03:01]}  c5 {[%clk 0:02:54]} 10. g5 {[%clk 0:02:50]}  Ne4 {[%clk 0:02:46]} 11. Nf3 {[%clk 0:02:46]}  Nc6 {[%clk 0:02:45]} 12. h5 {[%clk 0:02:35]}  Bf5 {[%clk 0:02:39]} 13. g6+ {[%clk 0:02:19]}  Ke8 {[%clk 0:02:39]} 14. Bd3 {[%clk 0:02:17]}  e6 {[%clk 0:02:35]} 15. Nbd2 {[%clk 0:02:12]}  cxd4 {[%clk 0:02:27]} 16. Bb5 {[%clk 0:01:45]}  Qb6 {[%clk 0:02:17]} 17. a4 {[%clk 0:01:39]}  a6 {[%clk 0:02:15]} 18. Bxc6+ {[%clk 0:01:38]}  bxc6 {[%clk 0:02:16]} 19. a5 {[%clk 0:01:29]}  Qa7 {[%clk 0:02:15]} 20. Nh4 {[%clk 0:01:23]}  Bb4 {[%clk 0:02:04]} 21. Nxf5 {[%clk 0:01:19]}  exf5 {[%clk 0:02:05]} 22. Rh3 {[%clk 0:00:57]}  d3 {[%clk 0:01:46]} 23. Qf3 {[%clk 0:00:50]}  Qg1+ {[%clk 0:01:45]} 24. Qf1 {[%clk 0:00:50]}  Qxf1+ {[%clk 0:01:43]} 25. Kxf1 {[%clk 0:00:49]}  Bxd2 {[%clk 0:01:44]} 26. Bxd2 {[%clk 0:00:47]}  Nxd2+ {[%clk 0:01:43]} 27. Ke1 {[%clk 0:00:48]}  Ne4 {[%clk 0:01:42]} 28. cxd3 {[%clk 0:00:47]}  Nf6 {[%clk 0:01:41]} 29. Kd2 {[%clk 0:00:42]}  Kd7 {[%clk 0:01:42]} 30. Re3 {[%clk 0:00:40]}  Rhe8 {[%clk 0:01:42]} 31. Re5 {[%clk 0:00:41]}  Rxe5 {[%clk 0:01:39]} 32. fxe5 {[%clk 0:00:42]}  Nxh5 {[%clk 0:01:40]} 33. Rh1 {[%clk 0:00:40]}  Nf4 {[%clk 0:01:40]} 34. Rf1 {[%clk 0:00:40]}  Nxg6 {[%clk 0:01:40]} 35. Rxf5 {[%clk 0:00:41]}  Ke6 {[%clk 0:01:41]} 36. Rf8 {[%clk 0:00:40]} 0-1


[Site "https://www.chess.com"]

[Event "Titled Tuesday Blitz May 4 2021"]
[White "Morris-Suzuki, Sophie"]
[Black "Zemerov, Vladimir"]
[WhiteFideId "30922615"]
[BlackFideId "4111583"]
[WhiteElo "2381"]
[BlackElo "2277"]
[Result "0-1"]
[Round "07"]
[TimeControl "180+1"]
[Date "2021.05.04"]
[WhiteClock "0:00:12"]
[BlackClock "0:00:49"]

1. c4 {[%clk 0:03:00]}  e5 {[%clk 0:02:58]} 2. Nc3 {[%clk 0:03:01]}  Nc6 {[%clk 0:02:58]} 3. Nf3 {[%clk 0:03:02]}  Nf6 {[%clk 0:02:58]} 4. e3 {[%clk 0:03:02]}  Bb4 {[%clk 0:02:58]} 5. Qc2 {[%clk 0:03:02]}  Bxc3 {[%clk 0:02:58]} 6. Qxc3 {[%clk 0:03:02]}  Qe7 {[%clk 0:02:57]} 7. d3 {[%clk 0:03:02]}  d5 {[%clk 0:02:56]} 8. cxd5 {[%clk 0:03:00]}  Nxd5 {[%clk 0:02:57]} 9. Qc2 {[%clk 0:03:00]}  Ndb4 {[%clk 0:02:54]} 10. Qb1 {[%clk 0:02:59]}  Bf5 {[%clk 0:02:52]} 11. a3 {[%clk 0:02:58]}  Na6 {[%clk 0:02:46]} 12. b4 {[%clk 0:02:57]}  Nab8 {[%clk 0:02:45]} 13. Bb2 {[%clk 0:02:52]}  a6 {[%clk 0:02:45]} 14. Be2 {[%clk 0:02:51]}  O-O {[%clk 0:02:43]} 15. O-O {[%clk 0:02:51]}  f6 {[%clk 0:02:43]} 16. Qc2 {[%clk 0:02:47]}  Nd7 {[%clk 0:02:42]} 17. Rac1 {[%clk 0:02:46]}  Rac8 {[%clk 0:02:40]} 18. Rfe1 {[%clk 0:02:40]}  Nb6 {[%clk 0:02:39]} 19. Bf1 {[%clk 0:02:38]}  Kh8 {[%clk 0:02:38]} 20. Nd2 {[%clk 0:02:36]}  Rfd8 {[%clk 0:02:35]} 21. Ne4 {[%clk 0:02:36]}  Nd7 {[%clk 0:02:26]} 22. Qb1 {[%clk 0:02:27]}  Na7 {[%clk 0:02:24]} 23. Nc5 {[%clk 0:02:20]}  Nxc5 {[%clk 0:02:23]} 24. Rxc5 {[%clk 0:02:21]}  c6 {[%clk 0:02:22]} 25. Rec1 {[%clk 0:02:20]}  Nb5 {[%clk 0:02:19]} 26. a4 {[%clk 0:02:18]}  Nd6 {[%clk 0:02:18]} 27. Ba3 {[%clk 0:02:15]}  Qd7 {[%clk 0:02:15]} 28. Qb3 {[%clk 0:02:07]}  Be6 {[%clk 0:02:13]} 29. Qc2 {[%clk 0:02:02]}  Bf7 {[%clk 0:02:12]} 30. Bb2 {[%clk 0:01:54]}  Be6 {[%clk 0:02:12]} 31. d4 {[%clk 0:01:52]}  exd4 {[%clk 0:02:10]} 32. Bxd4 {[%clk 0:01:53]}  Bf5 {[%clk 0:02:05]} 33. Qb2 {[%clk 0:01:52]}  Bg6 {[%clk 0:02:03]} 34. h3 {[%clk 0:01:41]}  Qe7 {[%clk 0:01:59]} 35. b5 {[%clk 0:01:40]}  axb5 {[%clk 0:01:58]} 36. axb5 {[%clk 0:01:40]}  cxb5 {[%clk 0:01:55]} 37. Rxc8 {[%clk 0:01:30]}  Rxc8 {[%clk 0:01:53]} 38. Rxc8+ {[%clk 0:01:30]}  Nxc8 {[%clk 0:01:53]} 39. Qxb5 {[%clk 0:01:29]}  Be8 {[%clk 0:01:50]} 40. Qc4 {[%clk 0:01:21]}  Bc6 {[%clk 0:01:49]} 41. Bc5 {[%clk 0:01:19]}  Qd7 {[%clk 0:01:45]} 42. Qf4 {[%clk 0:01:15]}  h6 {[%clk 0:01:34]} 43. Bd4 {[%clk 0:01:14]}  Nd6 {[%clk 0:01:32]} 44. Bd3 {[%clk 0:01:12]}  Qe6 {[%clk 0:01:27]} 45. Bc5 {[%clk 0:01:08]}  Qd5 {[%clk 0:01:24]} 46. Qg4 {[%clk 0:00:43]}  Qxc5 {[%clk 0:01:20]} 47. Qg6 {[%clk 0:00:42]}  f5 {[%clk 0:01:19]} 48. Kh2 {[%clk 0:00:30]}  Qe5+ {[%clk 0:01:18]} 49. Kg1 {[%clk 0:00:29]}  Qd5 {[%clk 0:01:18]} 50. Bf1 {[%clk 0:00:27]}  Be8 {[%clk 0:01:15]} 51. Qg3 {[%clk 0:00:25]}  Bf7 {[%clk 0:01:14]} 52. Qf4 {[%clk 0:00:24]}  b5 {[%clk 0:01:09]} 53. Qh4 {[%clk 0:00:24]}  Ne4 {[%clk 0:01:07]} 54. f3 {[%clk 0:00:22]}  Nf6 {[%clk 0:01:06]} 55. Qb4 {[%clk 0:00:21]}  Be8 {[%clk 0:01:04]} 56. Qf8+ {[%clk 0:00:18]}  Kh7 {[%clk 0:01:04]} 57. Qe7 {[%clk 0:00:17]}  Bc6 {[%clk 0:01:00]} 58. Kh2 {[%clk 0:00:13]}  Qd7 {[%clk 0:00:59]} 59. Qe5 {[%clk 0:00:12]}  Qd5 {[%clk 0:00:56]} 60. Qe7 {[%clk 0:00:11]}  h5 {[%clk 0:00:56]} 61. Qb4 {[%clk 0:00:10]}  Qe5+ {[%clk 0:00:55]} 62. Kh1 {[%clk 0:00:09]}  Qxe3 {[%clk 0:00:55]} 63. Bxb5 {[%clk 0:00:07]}  Bxb5 {[%clk 0:00:55]} 64. Qxb5 {[%clk 0:00:08]}  Qe6 {[%clk 0:00:54]} 65. Qb4 {[%clk 0:00:08]}  Kh6 {[%clk 0:00:52]} 66. Qf4+ {[%clk 0:00:08]}  g5 {[%clk 0:00:52]} 67. Qd4 {[%clk 0:00:09]}  h4 {[%clk 0:00:51]} 68. Kh2 {[%clk 0:00:08]}  Kg6 {[%clk 0:00:47]} 69. Kg1 {[%clk 0:00:08]}  Nd5 {[%clk 0:00:45]} 70. Qd3 {[%clk 0:00:08]}  Qe1+ {[%clk 0:00:44]} 71. Kh2 {[%clk 0:00:07]}  Qg3+ {[%clk 0:00:44]} 72. Kg1 {[%clk 0:00:08]}  Qxg2+ {[%clk 0:00:44]} 73. Kxg2 {[%clk 0:00:08]}  Nf4+ {[%clk 0:00:44]} 74. Kf2 {[%clk 0:00:08]}  Nxd3+ {[%clk 0:00:45]} 75. Ke3 {[%clk 0:00:09]}  Nf4 {[%clk 0:00:45]} 76. Kd4 {[%clk 0:00:09]}  Nxh3 {[%clk 0:00:46]} 77. Ke5 {[%clk 0:00:10]}  Nf4 {[%clk 0:00:46]} 78. Kd4 {[%clk 0:00:09]}  h3 {[%clk 0:00:47]} 79. Ke3 {[%clk 0:00:10]}  h2 {[%clk 0:00:48]} 80. Kf2 {[%clk 0:00:10]}  h1=Q {[%clk 0:00:49]} 81. Ke3 {[%clk 0:00:11]}  Qxf3+ {[%clk 0:00:49]} 82. Kd2 {[%clk 0:00:12]}  Qd3+ {[%clk 0:00:49]} 83. Kc1 {[%clk 0:00:12]}  Qe2 {[%clk 0:00:49]} 84. Kb1 {[%clk 0:00:12]}  Nd3 {[%clk 0:00:49]} 85. Ka1 {[%clk 0:00:12]}  Qb2# {[%clk 0:00:49]} 0-1


[Site "https://www.chess.com"]

[Event "Titled Tuesday Blitz May 4 2021"]
[White "Necula, Iulian"]
[Black "Luberanski, Jakub"]
[WhiteFideId "1232380"]
[BlackFideId "21830509"]
[WhiteElo "1776"]
[BlackElo "2078"]
[Result "0-1"]
[Round "07"]
[TimeControl "180+1"]
[Date "2021.05.04"]
[WhiteClock "0:00:02"]
[BlackClock "0:00:21"]

1. f4 {[%clk 0:03:00]}  d5 {[%clk 0:02:57]} 2. Nf3 {[%clk 0:03:01]}  Nf6 {[%clk 0:02:58]} 3. g3 {[%clk 0:03:00]}  g6 {[%clk 0:02:56]} 4. Bg2 {[%clk 0:03:01]}  Bg7 {[%clk 0:02:56]} 5. O-O {[%clk 0:03:02]}  O-O {[%clk 0:02:57]} 6. d3 {[%clk 0:03:03]}  Nc6 {[%clk 0:02:57]} 7. c3 {[%clk 0:03:03]}  Qd6 {[%clk 0:02:57]} 8. Na3 {[%clk 0:03:02]}  a6 {[%clk 0:02:56]} 9. Qc2 {[%clk 0:03:02]}  e5 {[%clk 0:02:51]} 10. fxe5 {[%clk 0:03:01]}  Nxe5 {[%clk 0:02:52]} 11. Nxe5 {[%clk 0:03:00]}  Qxe5 {[%clk 0:02:52]} 12. Bf4 {[%clk 0:03:00]}  Qe7 {[%clk 0:02:52]} 13. Rae1 {[%clk 0:02:56]}  Bf5 {[%clk 0:02:34]} 14. e4 {[%clk 0:02:50]}  dxe4 {[%clk 0:02:35]} 15. dxe4 {[%clk 0:02:50]}  Be6 {[%clk 0:02:35]} 16. Be5 {[%clk 0:02:19]}  Ng4 {[%clk 0:02:16]} 17. Bxg7 {[%clk 0:02:17]}  Kxg7 {[%clk 0:02:17]} 18. c4 {[%clk 0:02:11]}  Qc5+ {[%clk 0:02:13]} 19. Kh1 {[%clk 0:02:08]}  Ne5 {[%clk 0:02:12]} 20. Qc3 {[%clk 0:02:03]}  f6 {[%clk 0:02:08]} 21. b4 {[%clk 0:02:00]}  Qe7 {[%clk 0:02:08]} 22. Rf2 {[%clk 0:01:34]}  a5 {[%clk 0:02:07]} 23. bxa5 {[%clk 0:01:29]}  Rad8 {[%clk 0:01:42]} 24. Ref1 {[%clk 0:01:28]}  Rd3 {[%clk 0:01:40]} 25. Qb2 {[%clk 0:01:28]}  Qxa3 {[%clk 0:01:33]} 26. Qxb7 {[%clk 0:01:23]}  Qd6 {[%clk 0:01:31]} 27. a6 {[%clk 0:01:10]}  Qb6 {[%clk 0:01:00]} 28. Rb2 {[%clk 0:00:55]}  Qxb7 {[%clk 0:00:56]} 29. Rxb7 {[%clk 0:00:56]}  Ra3 {[%clk 0:00:49]} 30. a7 {[%clk 0:00:56]}  Bxc4 {[%clk 0:00:41]} 31. Rxc7+ {[%clk 0:00:56]}  Kh6 {[%clk 0:00:40]} 32. Rc1 {[%clk 0:00:48]}  Ra8 {[%clk 0:00:40]} 33. h3 {[%clk 0:00:38]}  R8xa7 {[%clk 0:00:40]} 34. R7xc4 {[%clk 0:00:36]}  Nxc4 {[%clk 0:00:40]} 35. Rxc4 {[%clk 0:00:37]}  Rxa2 {[%clk 0:00:40]} 36. Rc1 {[%clk 0:00:15]}  Rb2 {[%clk 0:00:39]} 37. Kg1 {[%clk 0:00:15]}  Raa2 {[%clk 0:00:39]} 38. Bf3 {[%clk 0:00:15]}  Rc2 {[%clk 0:00:37]} 39. Rf1 {[%clk 0:00:14]}  Rc3 {[%clk 0:00:35]} 40. h4 {[%clk 0:00:14]}  Raa3 {[%clk 0:00:35]} 41. Kg2 {[%clk 0:00:13]}  Kg7 {[%clk 0:00:35]} 42. g4 {[%clk 0:00:13]}  h6 {[%clk 0:00:34]} 43. Kg3 {[%clk 0:00:12]}  Kf7 {[%clk 0:00:33]} 44. Kf4 {[%clk 0:00:12]}  g5+ {[%clk 0:00:32]} 45. hxg5 {[%clk 0:00:13]}  hxg5+ {[%clk 0:00:33]} 46. Kg3 {[%clk 0:00:14]}  Ke6 {[%clk 0:00:33]} 47. Kg2 {[%clk 0:00:14]}  Ke5 {[%clk 0:00:34]} 48. Kg3 {[%clk 0:00:13]}  Rcb3 {[%clk 0:00:34]} 49. Kg2 {[%clk 0:00:14]}  Rb2+ {[%clk 0:00:31]} 50. Kg3 {[%clk 0:00:14]}  Rc3 {[%clk 0:00:30]} 51. Rd1 {[%clk 0:00:11]}  Rbb3 {[%clk 0:00:30]} 52. Rd5+ {[%clk 0:00:10]}  Ke6 {[%clk 0:00:30]} 53. Rf5 {[%clk 0:00:11]}  Rb4 {[%clk 0:00:26]} 54. Kg2 {[%clk 0:00:11]}  Rb2+ {[%clk 0:00:26]} 55. Kg3 {[%clk 0:00:11]}  Rcb3 {[%clk 0:00:24]} 56. Rd5 {[%clk 0:00:08]}  Rb5 {[%clk 0:00:23]} 57. Rd3 {[%clk 0:00:07]}  R2b3 {[%clk 0:00:22]} 58. Rxb3 {[%clk 0:00:07]}  Rxb3 {[%clk 0:00:22]} 59. Kf2 {[%clk 0:00:08]}  Ke5 {[%clk 0:00:22]} 60. Ke2 {[%clk 0:00:07]}  Kf4 {[%clk 0:00:22]} 61. Bg2 {[%clk 0:00:05]}  Kxg4 {[%clk 0:00:21]} 62. Bf1 {[%clk 0:00:02]}  Kf4 {[%clk 0:00:21]} 63. Bg2 {[%clk 0:00:01]}  Rb2+ {[%clk 0:00:21]} 64. Kf1 {[%clk 0:00:02]}  Ra2 {[%clk 0:00:21]} 0-1


[Site "https://www.chess.com"]

[Event "Titled Tuesday Blitz May 4 2021"]
[White "Nesterov, Arseniy"]
[Black "Martinez Alcantara, Jose Eduardo"]
[WhiteFideId "24198455"]
[BlackFideId "3805662"]
[WhiteElo "2441"]
[BlackElo "2690"]
[Result "0-1"]
[Round "07"]
[TimeControl "180+1"]
[Date "2021.05.04"]
[WhiteClock "0:00:03"]
[BlackClock "0:00:03"]

1. d4 {[%clk 0:03:00]}  Nf6 {[%clk 0:03:00]} 2. c4 {[%clk 0:03:01]}  e6 {[%clk 0:03:00]} 3. Nf3 {[%clk 0:03:01]}  Bb4+ {[%clk 0:03:00]} 4. Bd2 {[%clk 0:03:01]}  c5 {[%clk 0:03:01]} 5. Bxb4 {[%clk 0:03:00]}  cxb4 {[%clk 0:03:02]} 6. g3 {[%clk 0:03:00]}  b6 {[%clk 0:03:02]} 7. Bg2 {[%clk 0:03:00]}  Bb7 {[%clk 0:03:03]} 8. O-O {[%clk 0:03:00]}  a5 {[%clk 0:03:03]} 9. a3 {[%clk 0:02:59]}  Na6 {[%clk 0:03:03]} 10. axb4 {[%clk 0:02:48]}  Nxb4 {[%clk 0:03:04]} 11. Nc3 {[%clk 0:02:45]}  O-O {[%clk 0:03:03]} 12. b3 {[%clk 0:02:38]}  Rc8 {[%clk 0:03:00]} 13. Rc1 {[%clk 0:02:29]}  d5 {[%clk 0:02:54]} 14. Ne5 {[%clk 0:02:26]}  Ba8 {[%clk 0:02:49]} 15. Na4 {[%clk 0:02:08]}  Rb8 {[%clk 0:02:11]} 16. c5 {[%clk 0:02:01]}  bxc5 {[%clk 0:02:09]} 17. Nxc5 {[%clk 0:02:00]}  Qd6 {[%clk 0:02:04]} 18. Ra1 {[%clk 0:01:57]}  Rb5 {[%clk 0:02:01]} 19. Ned3 {[%clk 0:01:39]}  Nc6 {[%clk 0:01:50]} 20. e3 {[%clk 0:01:36]}  h5 {[%clk 0:01:50]} 21. h4 {[%clk 0:01:31]}  Bb7 {[%clk 0:01:43]} 22. Qe2 {[%clk 0:01:28]}  Rb8 {[%clk 0:01:39]} 23. Nf4 {[%clk 0:01:20]}  Bc8 {[%clk 0:01:16]} 24. Nxh5 {[%clk 0:01:15]}  Nxh5 {[%clk 0:01:17]} 25. Qxh5 {[%clk 0:01:14]}  e5 {[%clk 0:01:18]} 26. Rfd1 {[%clk 0:01:03]}  exd4 {[%clk 0:01:04]} 27. exd4 {[%clk 0:01:04]}  Be6 {[%clk 0:01:03]} 28. Bf1 {[%clk 0:00:53]}  Nxd4 {[%clk 0:00:36]} 29. Nxe6 {[%clk 0:00:44]}  Nxe6 {[%clk 0:00:34]} 30. Bxb5 {[%clk 0:00:44]}  Rxb5 {[%clk 0:00:35]} 31. Qe2 {[%clk 0:00:40]}  Qb6 {[%clk 0:00:32]} 32. Rac1 {[%clk 0:00:35]}  Rxb3 {[%clk 0:00:17]} 33. Rc8+ {[%clk 0:00:34]}  Nf8 {[%clk 0:00:17]} 34. Kg2 {[%clk 0:00:11]}  Rb2 {[%clk 0:00:11]} 35. Rd2 {[%clk 0:00:07]}  Rxd2 {[%clk 0:00:11]} 36. Qxd2 {[%clk 0:00:07]}  d4 {[%clk 0:00:09]} 37. Kg1 {[%clk 0:00:05]}  a4 {[%clk 0:00:07]} 38. Rc4 {[%clk 0:00:05]}  a3 {[%clk 0:00:06]} 39. Qxd4 {[%clk 0:00:04]}  Qb1+ {[%clk 0:00:04]} 40. Kg2 {[%clk 0:00:03]}  Ne6 {[%clk 0:00:05]} 41. Rc8+ {[%clk 0:00:03]}  Kh7 {[%clk 0:00:05]} 42. Qd5 {[%clk 0:00:03]}  g6 {[%clk 0:00:03]} 43. Qe5 {[%clk 0:00:02]}  Ng7 {[%clk 0:00:03]} 44. Ra8 {[%clk 0:00:01]}  Qb7+ {[%clk 0:00:03]} 45. Kh2 {[%clk 0:00:02]}  Qxa8 {[%clk 0:00:03]} 46. Qe4 {[%clk 0:00:03]}  Qxe4 {[%clk 0:00:03]} 0-1


[Site "https://www.chess.com"]

[Event "Titled Tuesday Blitz May 4 2021"]
[White "Niyazgulova, Marina"]
[Black "Plotnikov, Pavel"]
[WhiteFideId "24142573"]
[BlackFideId "4170342"]
[WhiteElo "2087"]
[BlackElo "2298"]
[Result "1-0"]
[Round "07"]
[TimeControl "180+1"]
[Date "2021.05.04"]
[WhiteClock "0:00:14"]
[BlackClock "0:00:06"]

1. d4 {[%clk 0:03:00]}  Nf6 {[%clk 0:02:58]} 2. c4 {[%clk 0:02:59]}  g6 {[%clk 0:02:59]} 3. Nc3 {[%clk 0:02:59]}  Bg7 {[%clk 0:03:00]} 4. e4 {[%clk 0:02:59]}  O-O {[%clk 0:03:00]} 5. Be2 {[%clk 0:02:59]}  d6 {[%clk 0:03:01]} 6. Nf3 {[%clk 0:02:59]}  e5 {[%clk 0:03:01]} 7. Be3 {[%clk 0:02:59]}  Na6 {[%clk 0:02:58]} 8. O-O {[%clk 0:02:53]}  Qe7 {[%clk 0:02:55]} 9. dxe5 {[%clk 0:02:51]}  dxe5 {[%clk 0:02:54]} 10. Nd5 {[%clk 0:02:50]}  Nxd5 {[%clk 0:02:54]} 11. cxd5 {[%clk 0:02:50]}  Rd8 {[%clk 0:02:48]} 12. Bxa6 {[%clk 0:02:39]}  bxa6 {[%clk 0:02:48]} 13. Qc2 {[%clk 0:02:39]}  Bg4 {[%clk 0:02:39]} 14. Nd2 {[%clk 0:02:33]}  Rac8 {[%clk 0:02:31]} 15. Rac1 {[%clk 0:02:24]}  Qe8 {[%clk 0:01:54]} 16. Qc6 {[%clk 0:02:16]}  Qe7 {[%clk 0:01:50]} 17. Qxa6 {[%clk 0:02:05]}  Qb4 {[%clk 0:01:37]} 18. b3 {[%clk 0:01:56]}  Rd6 {[%clk 0:01:28]} 19. Qxa7 {[%clk 0:01:36]}  Bf8 {[%clk 0:00:45]} 20. f3 {[%clk 0:01:32]}  Bd7 {[%clk 0:00:41]} 21. Nc4 {[%clk 0:01:23]}  Rf6 {[%clk 0:00:33]} 22. Nxe5 {[%clk 0:01:21]}  Bb5 {[%clk 0:00:33]} 23. Rfe1 {[%clk 0:01:13]}  Ra6 {[%clk 0:00:23]} 24. Qb7 {[%clk 0:01:02]}  Re8 {[%clk 0:00:20]} 25. Nc6 {[%clk 0:00:49]}  Bxc6 {[%clk 0:00:01]} 26. Qxa6 {[%clk 0:00:40]}  Bb5 {[%clk 0:00:02]} 27. Qb7 {[%clk 0:00:36]}  Qa5 {[%clk 0:00:02]} 28. a4 {[%clk 0:00:26]}  Qb4 {[%clk 0:00:02]} 29. Qxb5 {[%clk 0:00:23]}  Qa3 {[%clk 0:00:02]} 30. Bd4 {[%clk 0:00:20]}  Rc8 {[%clk 0:00:01]} 31. Ra1 {[%clk 0:00:20]}  Rd8 {[%clk 0:00:02]} 32. Rxa3 {[%clk 0:00:19]}  Bxa3 {[%clk 0:00:03]} 33. Qc6 {[%clk 0:00:18]}  Bd6 {[%clk 0:00:04]} 34. e5 {[%clk 0:00:18]}  Bf8 {[%clk 0:00:05]} 35. Qxc7 {[%clk 0:00:18]}  Rxd5 {[%clk 0:00:05]} 36. Bc3 {[%clk 0:00:17]}  Rc5 {[%clk 0:00:06]} 37. Qd7 {[%clk 0:00:15]}  Rxc3 {[%clk 0:00:06]} 38. e6 {[%clk 0:00:16]}  Bc5+ {[%clk 0:00:06]} 39. Kh1 {[%clk 0:00:15]}  fxe6 {[%clk 0:00:07]} 40. Qxe6+ {[%clk 0:00:15]}  Kf8 {[%clk 0:00:07]} 41. Qf6+ {[%clk 0:00:15]}  Kg8 {[%clk 0:00:06]} 42. Qxc3 {[%clk 0:00:16]}  Bf8 {[%clk 0:00:06]} 43. Re8 {[%clk 0:00:16]}  Kf7 {[%clk 0:00:06]} 44. Qe5 {[%clk 0:00:15]}  Bg7 {[%clk 0:00:06]} 45. Qe7# {[%clk 0:00:14]} 1-0


[Site "https://www.chess.com"]